bitfinex-derivatives/quotes_SOLF0:USTF0_20250904
["timestamp","ask_amount","ask_price","bid_price","bid_amount"]
[1757003679194,8.0,204.23,204.2,0.03598554]
[1757003679399,9.94036291,204.23,204.2,0.03598554]
[1757003679594,8.0,204.23,204.2,0.03598554]
[1757003679894,9.94036291,204.23,204.2,0.03598554]
[1757003680301,8.0,204.22,204.2,0.03598554]
[1757003682196,8.0,204.26,204.2,0.03598554]
[1757003682392,9.94036291,204.26,204.2,0.03598554]
[1757003682797,8.0,204.26,204.2,0.03598554]
[1757003682999,9.94036291,204.26,204.2,0.03598554]
[1757003683298,131.26,204.27,204.21,1.94036291]
[1757003686202,1.94036291,204.26,204.21,1.94036291]
[1757003686396,9.94036291,204.26,204.2,0.03598554]
[1757003686593,8.0,204.26,204.2,0.03598554]
[1757003686798,8.0,204.23,204.2,0.03598554]
[1757003686997,8.0,204.26,204.2,0.03598554]
[1757003687297,8.0,204.2,204.1,1.94036291]
[1757003687503,1.94036291,204.16,204.1,1.94036291]
[1757003687698,123.1,204.19,204.12,1.94036291]
[1757003687898,125.04036291,204.19,204.12,1.94036291]
[1757003688101,125.04036291,204.19,204.11,9.97036291]
[1757003688598,0.03302486,204.17,204.11,8.03]
[1757003688794,7.31302486,204.17,204.12,9.97036291]
[1757003688995,1.94036291,204.15,204.03,8.03]
[1757003689199,1.94036291,204.13,204.06,1.94036291]
[1757003689394,1.94036291,204.11,204.07,4.02891807]
[1757003689596,1.94036291,204.11,204.06,8.03]
[1757003689803,1.94036291,204.11,204.05,9.97036291]
[1757003690005,9.2521294,204.11,204.06,4.03087503]
[1757003690207,1.9721294,204.11,204.05,8.03]
[1757003690504,9.2521294,204.11,204.06,12.06260052]
[1757003690697,9.2521294,204.11,204.06,8.03]
[1757003691302,9.2521294,204.11,204.07,4.03396458]
[1757003691502,9.2521294,204.11,204.08,4.03396458]
[1757003691703,1.94036291,204.09,204.03,1.94036291]
[1757003691902,9.22036291,204.09,204.04,12.06411471]
[1757003692108,9.22036291,204.09,204.05,4.03411471]
[1757003692303,9.22036291,204.09,204.06,4.03411471]
[1757003692504,9.22036291,204.09,204.07,4.03411471]
[1757003692701,9.22036291,204.09,204.03,9.97036291]
[1757003692905,9.22036291,204.09,204.05,8.03]
[1757003693108,9.22036291,204.09,204.06,4.03558436]
[1757003693406,0.03176649,204.11,204.07,4.03558436]
[1757003693611,1.94036291,204.1,204.08,4.03558436]
[1757003693909,1.94036291,204.1,204.04,8.03]
[1757003694111,1.94036291,204.1,204.06,8.03]
[1757003694411,9.22036291,204.1,204.07,4.037305]
[1757003694611,9.22036291,204.1,204.08,4.037305]
[1757003694806,9.22036291,204.1,204.06,8.03]
[1757003695111,7.28,204.09,204.07,4.03930398]
[1757003695310,7.28,204.09,204.08,4.03930398]
[1757003696209,10.78767449,204.09,203.99,12.12287645]
[1757003696413,10.30767449,204.09,204.0,8.58879924]
[1757003696609,7.28,204.09,204.02,8.03]
[1757003696814,0.03370101,204.07,204.04,8.03]
[1757003697009,0.03370101,204.07,204.05,4.04361844]
[1757003697210,0.03370101,204.07,203.99,12.12287645]
[1757003697211,7.31370101,204.07,203.99,12.12287645]
[1757003697413,7.31370101,204.07,204.0,8.59116918]
[1757003697611,7.31370101,204.07,204.01,8.59116918]
[1757003697812,7.31370101,204.07,204.02,12.07474538]
[1757003698017,7.31370101,204.07,204.03,4.04474538]
[1757003698209,7.31370101,204.07,204.04,4.04474538]
[1757003698406,7.31370101,204.07,204.05,4.04474538]
[1757003698611,7.28,204.06,204.02,8.03]
[1757003698813,7.28,204.06,204.03,4.04612465]
[1757003699008,7.28,204.06,204.04,4.04612465]
[1757003699208,7.28,204.06,204.02,8.03]
[1757003699209,0.03370101,204.07,204.05,4.04744635]
[1757003699417,0.03370101,204.07,204.06,4.04744635]
[1757003700714,0.03370101,204.07,204.06,12.07744635]
[1757003700914,0.03370101,204.07,204.06,16.62763172]
[1757003701420,0.03370101,204.07,204.06,12.07744635]
[1757003701817,0.03370101,204.07,204.06,16.62915525]
[1757003702016,0.03370101,204.07,204.06,12.07744635]
[1757003703516,7.31370101,204.07,204.06,4.04744635]
[1757003703720,7.31370101,204.07,204.0,8.03]
[1757003703721,0.03370101,204.07,204.0,8.03]
[1757003704022,0.03370101,204.07,204.01,8.61413977]
[1757003704217,0.03370101,204.07,204.03,8.03]
[1757003704415,0.03370101,204.07,204.05,8.03]
[1757003704613,0.03370101,204.07,204.06,4.05865304]
[1757003705821,7.31370101,204.07,204.06,4.05865304]
[1757003706020,7.31370101,204.07,203.99,4.09287645]
[1757003706221,7.31370101,204.07,204.0,8.61982723]
[1757003706420,7.31370101,204.07,204.01,4.06126263]
[1757003706720,0.03370101,204.07,204.02,4.06126263]
[1757003706919,3.02767449,204.05,204.02,0.03422813]
[1757003707120,7.28,204.04,204.02,0.03422813]
[1757003707918,10.30767449,204.03,204.02,0.03422813]
[1757003709820,10.80767449,204.03,204.02,0.03422813]
[1757003711629,10.30767449,204.03,204.02,0.03422813]
[1757003712522,3.02767449,204.04,204.02,0.03422813]
[1757003712722,7.28,204.05,204.02,0.03422813]
[1757003713122,7.28,204.06,204.02,0.03422813]
[1757003713318,7.28,204.04,204.02,0.03422813]
[1757003713719,3.02767449,204.05,204.02,0.03422813]
[1757003714124,0.03370101,204.07,204.02,0.03422813]
[1757003714324,7.28,204.06,204.02,0.03422813]
[1757003714925,0.03370101,204.07,204.02,0.03422813]
[1757003715325,7.28,204.03,204.02,0.03422813]
[1757003715922,7.78,204.03,204.02,0.03422813]
[1757003716127,7.78,204.03,203.92,4.55959669]
[1757003716327,3.02767449,204.0,203.93,4.0561283]
[1757003716527,10.30767449,204.0,203.94,4.0561283]
[1757003716828,10.30767449,204.0,203.91,8.03]
[1757003717031,10.30767449,204.0,203.92,4.05526418]
[1757003717329,0.03698914,203.98,203.91,8.03]
[1757003717529,0.03698914,203.98,203.92,4.05381329]
[1757003717730,0.03698914,203.98,203.93,4.05376809]
[1757003717931,0.03698914,203.98,203.94,4.05376809]
[1757003718133,0.03698914,203.98,203.95,11.82376809]
[1757003718432,0.03698914,203.98,203.91,7.77]
[1757003718629,0.03698914,203.98,203.92,4.05289322]
[1757003718831,0.03698914,203.98,203.94,7.77]
[1757003719125,0.03698914,203.98,203.9,7.77]
[1757003719330,0.03698914,203.98,203.91,4.05241581]
[1757003719527,0.03698914,203.98,203.92,4.05241581]
[1757003719830,0.03698914,203.98,203.9,7.77]
[1757003720032,0.03698914,203.98,203.91,4.05176528]
[1757003720225,0.03698914,203.98,203.92,4.05176528]
[1757003720429,3.06466363,203.98,203.9,7.77]
[1757003720634,3.06466363,203.98,203.91,4.0506697]
[1757003720925,3.06466363,203.98,203.9,7.77]
[1757003721128,7.63,203.97,203.9,7.77]
[1757003721429,3.02767449,203.95,203.9,7.77]
[1757003721930,7.63,203.94,203.9,7.77]
[1757003722134,3.02767449,203.95,203.9,7.77]
[1757003722827,10.65767449,203.95,203.9,7.77]
[1757003723033,7.63,203.95,203.91,7.77]
[1757003723530,0.03414911,203.95,203.88,7.77]
[1757003723730,0.03414911,203.95,203.89,4.04748946]
[1757003723930,3.02767449,203.99,203.9,7.77]
[1757003724122,0.03432638,203.94,203.9,7.77]
[1757003724323,0.03432638,203.94,203.89,3.02767449]
[1757003724724,0.03432638,203.94,203.9,7.77]
[1757003724928,0.03432638,203.94,203.91,4.04715582]
[1757003725122,0.03432638,203.94,203.9,7.77]
[1757003725328,0.03432638,203.94,203.92,7.77]
[1757003725524,7.63,204.08,203.92,3.02767449]
[1757003725733,123.18,204.07,203.96,7.77]
[1757003725930,7.63,204.05,203.96,7.77]
[1757003726129,3.02767449,204.04,203.96,7.77]
[1757003726730,0.03691303,204.02,203.96,7.77]
[1757003731133,7.63,204.01,203.91,7.77]
[1757003731334,7.63,204.01,203.93,7.77]
[1757003731534,7.63,204.01,203.94,4.06040097]
[1757003731729,7.63,204.01,203.93,7.77]
[1757003731947,0.03315214,203.99,203.95,7.77]
[1757003732832,0.03315214,203.99,203.91,7.77]
[1757003733030,0.03315214,203.99,203.93,7.77]
[1757003733231,0.03315214,203.99,203.95,7.77]
[1757003733431,0.03315214,203.99,203.86,7.87641076]
[1757003733432,0.03315214,203.99,203.97,7.77]
[1757003733636,0.03315214,203.99,203.93,7.77]
[1757003733831,7.63,204.05,203.94,4.06841576]
[1757003734043,0.03250162,203.98,203.95,4.06841576]
[1757003734330,0.03250162,203.98,203.97,7.77]
[1757003734528,0.03250162,203.98,203.97,11.83841576]
[1757003739737,0.03250162,203.98,203.97,11.84436341]
[1757003741940,0.03250162,203.98,203.97,16.41856968]
[1757003742142,86.44,204.08,203.97,9.14856968]
[1757003742439,86.44,204.08,203.99,7.77]
[1757003742641,86.44,204.08,204.0,4.07436341]
[1757003742839,86.44,204.08,204.01,4.07436341]
[1757003743037,86.44,204.08,203.99,7.77]
[1757003743236,86.44,204.08,204.02,0.03222084]
[1757003743437,94.07,204.08,204.02,0.03222084]
[1757003745342,123.32,204.07,204.02,0.03222084]
[1757003745536,7.63,204.06,204.02,0.03222084]
[1757003745947,123.32,204.07,204.02,0.03222084]
[1757003746946,7.63,204.06,204.02,0.03222084]
[1757003747143,123.32,204.07,204.02,0.03222084]
[1757003747343,7.63,204.06,204.02,0.03222084]
[1757003747649,10.66037042,204.03,204.02,0.03222084]
[1757003748043,11.16037042,204.03,203.95,7.77]
[1757003748240,3.03037042,204.0,203.96,4.08201717]
[1757003748548,10.68037042,204.0,203.97,4.08201717]
[1757003748749,10.68037042,204.0,203.95,7.77]
[1757003748948,7.65,204.04,203.97,7.57]
[1757003749247,0.03102262,204.0,203.98,4.08424249]
[1757003749450,0.03102262,204.0,203.95,4.11131927]
[1757003749451,0.03102262,204.0,203.99,11.65424249]
[1757003749749,0.03286249,204.02,203.99,4.08424249]
[1757003749946,0.03286249,204.02,204.0,4.08424249]
[1757003750248,0.03286249,204.02,203.95,7.57]
[1757003750451,0.03286249,204.02,203.96,8.67682307]
[1757003750650,0.03286249,204.02,203.98,7.57]
[1757003750849,0.03286249,204.02,203.99,4.08764475]
[1757003751053,0.03286249,204.02,204.0,4.08764475]
[1757003751246,0.03286249,204.02,204.01,4.08764496]
[1757003751654,0.03286249,204.02,204.01,11.65764496]
[1757003752051,0.03286249,204.02,204.01,4.08764496]
[1757003753142,7.68286249,204.02,204.01,4.08764496]
[1757003753347,7.68286249,204.02,203.94,7.57]
[1757003753547,7.68286249,204.02,203.95,8.67978119]
[1757003753856,7.68286249,204.02,203.96,4.08886153]
[1757003754049,7.68286249,204.02,203.97,11.65886153]
[1757003754249,7.65,204.01,203.98,4.08886153]
[1757003754449,7.65,204.01,203.99,4.08886153]
[1757003754650,7.65,204.01,203.97,7.57]
[1757003754953,7.65,204.01,203.98,4.08875495]
[1757003755153,7.65,204.01,203.99,4.08875495]
[1757003755354,7.65,204.01,203.97,7.57]
[1757003755656,7.65,204.01,203.98,4.08874244]
[1757003755954,7.65,204.01,203.99,4.08874244]
[1757003756154,7.65,204.01,203.97,7.57]
[1757003756451,7.65,204.01,203.98,4.08860318]
[1757003756645,7.65,204.01,203.99,4.08860318]
[1757003756849,7.65,204.01,203.97,7.57]
[1757003757047,7.65,204.01,203.98,4.08873837]
[1757003757252,7.65,204.01,203.99,4.08873837]
[1757003757451,7.65,204.01,203.97,7.57]
[1757003757452,1.93948673,204.0,203.97,7.57]
[1757003757650,1.93948673,204.0,203.98,4.088736]
[1757003757949,1.93948673,204.0,203.99,4.088736]
[1757003758156,0.03286249,204.02,203.99,11.658736]
[1757003758361,0.03286249,204.02,204.01,7.57]
[1757003758557,0.03286249,204.02,204.01,11.65900942]
[1757003758859,9.58948673,204.03,204.01,4.08900942]
[1757003759062,9.58948673,204.03,203.96,7.57]
[1757003759063,9.58948673,204.03,203.96,9.50948673]
[1757003759255,9.58948673,204.03,203.97,8.67993961]
[1757003759456,1.93948673,204.01,203.98,16.24993961]
[1757003759751,0.03739474,204.04,203.99,4.08890627]
[1757003759951,1.93948673,204.0,203.94,11.68131927]
[1757003760156,1.93948673,203.98,203.96,7.57]
[1757003760460,1.93948673,203.98,203.97,8.68139333]
[1757003760660,1.93948673,204.0,203.97,16.25139333]
[1757003760856,0.03748149,204.01,203.99,7.57]
[1757003761159,1.93948673,204.02,204.0,11.65955778]
[1757003761359,1.972975,204.02,204.0,7.57]
[1757003761661,1.972975,204.02,203.96,7.57]
[1757003761860,1.93948673,204.0,203.97,16.25161816]
[1757003762053,1.93948673,203.98,203.93,7.57]
[1757003762252,1.93948673,203.96,203.94,16.25252008]
[1757003762452,1.93948673,203.96,203.9,7.57]
[1757003762663,1.93948673,203.92,203.91,16.25311662]
[1757003763563,1.93948673,203.92,203.91,8.68311662]
[1757003763864,1.93948673,203.92,203.86,7.57]
[1757003764065,1.93948673,203.9,203.88,7.57]
[1757003764261,1.93948673,203.9,203.89,8.68014258]
[1757003764665,1.93948673,203.9,203.88,7.57]
[1757003764860,0.03687012,203.94,203.87,0.03742452]
[1757003765166,9.58948673,203.88,203.87,0.03742452]
[1757003765755,1.93948673,203.88,203.87,0.03742452]
[1757003766167,9.58948673,203.88,203.87,0.03742452]
[1757003768767,1.93948673,203.88,203.87,0.03742452]
[1757003769972,1.93948673,203.89,203.87,11.57444839]
[1757003770266,1.93948673,203.89,203.87,7.60742452]
[1757003770667,1.97465194,203.9,203.87,7.60742452]
[1757003770967,1.97465194,203.9,203.87,0.03742452]
[1757003771363,9.58948673,203.88,203.87,0.03742452]
[1757003771566,9.58948673,203.88,203.87,4.00263403]
[1757003772563,1.93948673,203.88,203.87,4.00263403]
[1757003772768,9.58948673,203.88,203.87,4.00263403]
[1757003773669,1.93948673,203.88,203.87,4.00263403]
[1757003775767,9.58948673,203.88,203.87,4.00263403]
[1757003776067,9.58948673,203.88,203.87,0.03742452]
[1757003777059,1.93948673,203.88,203.87,0.03742452]
[1757003780667,9.21948673,203.88,203.87,0.03742452]
[1757003781377,1.93948673,203.88,203.87,0.03742452]
[1757003781674,0.03516521,203.9,203.89,7.59]
[1757003783775,0.03516521,203.9,203.89,12.04699156]
[1757003784674,0.03516521,203.9,203.89,4.45699156]
[1757003784973,0.03516521,203.9,203.89,12.04699156]
[1757003786774,0.03516521,203.9,203.89,3.95699156]
[1757003787078,0.03516521,203.9,203.88,7.59]
[1757003787678,0.03516521,203.9,203.89,7.59]
[1757003787877,0.03516521,203.9,203.89,11.54873486]
[1757003789372,0.03516521,203.9,203.89,13.48822159]
[1757003790780,0.03516521,203.9,203.89,11.54873486]
[1757003791779,0.03516521,203.9,203.89,3.95873486]
[1757003791981,0.03516521,203.9,203.87,0.03742452]
[1757003792182,0.03516521,203.9,203.87,7.62742452]
[1757003792886,1.93948673,203.88,203.87,0.03742452]
[1757003793089,9.21948673,203.88,203.87,0.03742452]
[1757003796591,1.93948673,203.88,203.87,0.03742452]
[1757003797282,7.28,203.89,203.87,0.03742452]
[1757003797488,0.03516521,203.9,203.87,7.62742452]
[1757003798882,0.03516521,203.9,203.87,0.03742452]
[1757003799084,7.31516521,203.9,203.87,0.03742452]
[1757003799285,7.28,203.89,203.87,0.03742452]
[1757003799484,0.03516521,203.9,203.87,0.03742452]
[1757003799691,1.93948673,203.89,203.87,0.03742452]
[1757003800289,9.21948673,203.89,203.87,0.03742452]
[1757003800888,7.28,203.88,203.87,0.03742452]
[1757003801289,7.28,203.88,203.87,4.00075237]
[1757003802796,1.93948673,203.89,203.87,4.00075237]
[1757003802993,7.28,203.88,203.87,0.03742452]
[1757003803296,7.28,203.88,203.87,4.0027115]
[1757003805999,0.03516521,203.9,203.87,11.5927115]
[1757003806303,0.03516521,203.9,203.89,7.59]
[1757003806499,0.03516521,203.9,203.89,3.96528698]
[1757003806698,9.25465194,203.9,203.89,3.96528698]
[1757003806894,2.47465194,203.9,203.87,0.03742452]
[1757003807100,9.21948673,203.88,203.87,0.03742452]
[1757003807301,9.21948673,203.88,203.87,4.01034143]
[1757003809508,7.96,203.87,203.77,7.88]
[1757003809701,1.93948673,203.83,203.77,7.88]
[1757003810804,1.93948673,203.81,203.75,7.88]
[1757003811405,1.93948673,203.79,203.75,7.88]
[1757003811711,1.93948673,203.79,203.73,7.88]
[1757003812300,0.03457364,203.78,203.72,1.93948673]
[1757003813108,0.03457364,203.78,203.73,7.88]
[1757003814309,0.03457364,203.78,203.72,1.93948673]
[1757003814711,0.03457364,203.78,203.73,7.88]
[1757003815008,0.03457364,203.78,203.75,7.88]
[1757003815209,0.03457364,203.78,203.74,1.93948673]
[1757003815801,0.03457364,203.78,203.75,7.88]
[1757003816301,0.03457364,203.78,203.76,1.93948673]
[1757003816505,0.03457364,203.78,203.77,7.88]
[1757003816706,36.65948673,203.89,203.77,8.38]
[1757003816906,36.65948673,203.89,203.82,1.93948673]
[1757003816907,1.93948673,203.89,203.82,1.93948673]
[1757003817110,9.89948673,203.9,203.82,1.93948673]
[1757003817515,7.96,203.9,203.81,10.91360706]
[1757003817910,0.03137858,203.88,203.81,10.91360706]
[1757003818305,0.03137858,203.88,203.82,7.88]
[1757003821417,0.03137858,203.88,203.85,3.03360706]
[1757003821613,0.03137858,203.88,203.87,7.88]
[1757003821814,0.03137858,203.88,203.87,11.82350484]
[1757003824820,0.03137858,203.88,203.87,3.94350484]
[1757003825517,0.03137858,203.88,203.87,11.82350484]
[1757003825718,0.03137858,203.88,203.87,3.94350484]
[1757003825918,7.99137858,203.88,203.87,3.94350484]
[1757003826114,7.99137858,203.88,203.78,7.88]
[1757003826314,7.99137858,203.88,203.79,3.95183943]
[1757003826516,7.96,203.88,203.8,3.95183943]
[1757003826713,0.03304267,203.85,203.82,7.88]
[1757003826910,0.03304267,203.85,203.83,3.95183943]
[1757003827218,0.03304267,203.85,203.84,3.95183943]
[1757003827418,0.03304267,203.85,203.84,11.83183943]
[1757003828616,7.94060706,204.1,203.84,11.83183943]
[1757003828617,7.96,203.96,203.84,4.45183943]
[1757003828914,7.96,203.96,203.88,7.88]
[1757003829119,7.96,203.96,203.89,3.95183943]
[1757003829320,7.96,203.96,203.9,3.95183943]
[1757003829516,7.96,203.96,203.91,3.95183943]
[1757003829717,7.96,203.99,203.92,3.95183943]
[1757003829917,7.96,203.99,203.93,3.95183943]
[1757003830116,7.96,203.99,203.91,0.03628337]
[1757003830314,7.96,203.99,203.92,3.95112206]
[1757003830620,7.96,203.99,203.91,0.03628337]
[1757003830819,7.96,203.99,203.92,3.95132343]
[1757003831015,7.96,203.99,203.91,0.03628337]
[1757003831213,7.96,203.99,203.92,3.9513607]
[1757003831411,7.96,203.99,203.91,0.03628337]
[1757003831615,3.03360706,203.97,203.91,0.03628337]
[1757003831816,7.96,203.96,203.91,0.03628337]
[1757003832217,3.03360706,203.97,203.91,0.03628337]
[1757003832421,10.99360706,203.97,203.91,0.03628337]
[1757003833014,7.96,203.97,203.92,3.95169208]
[1757003833227,7.96,203.97,203.91,0.03628337]
[1757003833420,7.96,203.97,203.92,11.83176486]
[1757003833620,67.34,204.01,203.93,11.83138949]
[1757003833821,67.34,204.01,203.94,3.95138949]
[1757003834022,67.34,204.01,203.95,3.95138949]
[1757003834222,67.34,204.01,203.95,0.03135068]
[1757003834622,7.96,204.01,203.96,3.95090342]
[1757003834828,447.2,204.05,203.97,11.83073451]
[1757003835126,447.2,204.05,203.98,3.95073451]
[1757003835325,447.2,204.05,203.97,7.88]
[1757003835526,447.2,204.05,203.98,3.9489469]
[1757003835724,447.2,204.05,203.99,0.0320663]
[1757003836927,324.04,204.05,203.99,0.0320663]
[1757003837127,447.18,204.05,203.99,0.0320663]
[1757003837517,324.04,204.05,204.0,3.94489508]
[1757003837719,130.45,204.09,204.02,7.27]
[1757003837924,7.31,204.09,204.03,3.94489508]
[1757003838129,49.56,204.09,204.02,7.27]
[1757003838331,49.56,204.09,204.03,3.94045795]
[1757003838521,49.56,204.09,204.04,11.21045795]
[1757003838727,7.31,204.1,204.03,7.30103541]
[1757003838924,49.54,204.11,204.04,6.97377155]
[1757003839130,7.31,204.14,204.05,11.21016449]
[1757003839331,90.27,204.14,204.06,3.94016449]
[1757003839634,90.27,204.14,204.05,7.3075788]
[1757003839827,90.27,204.14,204.06,3.93371439]
[1757003840023,90.27,204.14,204.07,3.93371439]
[1757003840330,90.27,204.14,204.05,7.3075788]
[1757003840530,7.31,204.14,204.06,3.9294586]
[1757003840738,315.98,204.18,204.08,7.27]
[1757003840930,439.08,204.18,204.09,3.9294586]
[1757003841130,439.08,204.18,204.1,3.92391757]
[1757003841327,439.08,204.18,204.11,0.03572579]
[1757003841627,315.98,204.18,204.11,0.03572579]
[1757003843331,315.98,204.18,204.12,7.27]
[1757003844429,439.06,204.18,204.12,7.27]
[1757003845838,439.06,204.18,204.11,0.03572579]
[1757003846326,7.31,204.17,204.11,0.03572579]
[1757003849528,7.31,204.15,204.11,0.03572579]
[1757003849933,123.02,204.16,204.11,7.30572579]
[1757003850438,130.33,204.16,204.11,7.30572579]
[1757003851234,123.02,204.16,204.11,7.30572579]
[1757003851435,7.31,204.15,204.11,7.30572579]
[1757003857036,123.02,204.16,204.11,0.03572579]
[1757003857442,7.31,204.15,204.11,0.03572579]
[1757003858145,315.98,204.18,204.11,0.03572579]
[1757003858347,122.98,204.17,204.11,0.03572579]
[1757003861650,7.31,204.15,204.11,0.03572579]
[1757003862348,130.25,204.15,204.11,7.30572579]
[1757003863750,122.94,204.15,204.11,7.30572579]
[1757003863944,7.31,204.14,204.11,7.30572579]
[1757003864446,7.31,204.14,204.11,0.03572579]
[1757003864946,7.31,204.14,204.11,7.30572579]
[1757003865151,7.31,204.14,204.11,0.03572579]
[1757003867454,122.94,204.15,204.11,0.03572579]
[1757003867654,7.34,204.14,204.11,0.03572579]
[1757003870149,122.94,204.15,204.11,0.03572579]
[1757003870356,7.34,204.14,204.11,0.03572579]
[1757003872053,7.34,204.14,204.12,3.92538124]
[1757003872258,7.34,204.14,204.11,0.03572579]
[1757003872461,122.94,204.15,204.12,3.92538124]
[1757003872655,323.32,204.18,204.11,7.81572579]
[1757003872860,122.9,204.17,204.12,6.95076654]
[1757003873159,122.9,204.17,204.13,3.92533608]
[1757003873362,7.34,204.16,204.14,3.92533608]
[1757003873659,7.34,204.16,204.12,3.02543046]
[1757003873860,122.9,204.17,204.13,3.92855675]
[1757003874059,7.34,204.16,204.14,3.92855675]
[1757003874255,122.9,204.17,204.12,3.02543046]
[1757003874456,7.34,204.15,204.13,3.93076047]
[1757003874758,7.34,204.15,204.14,3.93076047]
[1757003875762,315.98,204.18,204.11,7.81572579]
[1757003875763,323.32,204.18,204.11,7.81572579]
[1757003875960,130.22,204.16,204.12,3.93329638]
[1757003876156,7.34,204.15,204.13,3.93329638]
[1757003876357,7.34,204.15,204.14,3.93329638]
[1757003877764,122.86,204.18,204.14,3.93329638]
[1757003877965,7.34,204.17,204.15,3.93329638]
[1757003878165,7.34,204.17,204.16,3.9456032]
[1757003879667,7.34,204.27,204.16,3.9456032]
[1757003879961,1.93602439,204.21,204.17,3.9456032]
[1757003880156,122.86,204.2,204.19,0.03559003]
[1757003880555,1.93602439,204.21,204.19,0.03559003]
[1757003880858,122.84,204.2,204.19,0.03559003]
[1757003881165,7.34,204.21,204.19,3.99089713]
[1757003881464,7.34,204.21,204.2,3.9553071]
[1757003885267,54.4,204.21,204.2,3.9553071]
[1757003885669,7.34,204.21,204.2,3.9553071]
[1757003886070,7.34,204.21,204.19,0.03559003]
[1757003886275,7.34,204.21,204.2,3.9580707]
[1757003886669,83.9,204.23,204.2,11.7380707]
[1757003886867,8.19258593,204.25,204.21,11.73803293]
[1757003887076,7.34,204.25,204.22,5.8932046]
[1757003887274,7.34,204.25,204.23,3.95718136]
[1757003887475,7.34,204.25,204.22,1.93602439]
[1757003887772,122.8,204.26,204.23,3.95745424]
[1757003887976,124.73602439,204.26,204.2,1.93602439]
[1757003888163,7.34,204.25,204.21,3.95745424]
[1757003888364,7.34,204.25,204.22,3.95745424]
[1757003888569,7.34,204.25,204.19,1.97161442]
[1757003888773,7.34,204.25,204.2,3.9561309]
[1757003888973,124.73602439,204.26,204.21,3.9561309]
[1757003889169,7.34,204.25,204.19,0.03559003]
[1757003889368,1.93602439,204.22,204.19,0.03559003]
[1757003889678,7.34,204.21,204.19,0.03559003]
[1757003890277,1.93602439,204.22,204.19,0.03559003]
[1757003890574,9.27602439,204.2,204.19,0.03559003]
[1757003890771,1.93602439,204.24,204.19,0.03559003]
[1757003890971,7.34,204.22,204.19,0.03559003]
[1757003891868,124.71602439,204.24,204.19,0.03559003]
[1757003892173,7.34,204.23,204.19,0.03559003]
[1757003892367,7.34,204.27,204.2,7.78]
[1757003892568,7.34,204.27,204.21,1.93602439]
[1757003894178,7.34,204.27,204.19,7.81559003]
[1757003894373,7.34,204.27,204.22,1.93602439]
[1757003895179,7.34,204.27,204.19,7.81559003]
[1757003895372,7.34,204.27,204.22,1.93602439]
[1757003896074,7.34,204.27,204.19,7.81559003]
[1757003896377,1.93602439,204.25,204.2,3.9502317]
[1757003896572,7.34,204.27,204.2,1.93602439]
[1757003896773,7.34,204.27,204.21,3.94975371]
[1757003896977,7.34,204.27,204.22,1.93602439]
[1757003897180,9.27602439,204.27,204.22,1.93602439]
[1757003897380,9.27602439,204.27,204.21,1.93602439]
[1757003898689,7.34,204.27,204.2,1.93602439]
[1757003898890,7.34,204.27,204.21,3.94869557]
[1757003898891,9.27602439,204.27,204.21,3.94869557]
[1757003899187,132.01602439,204.27,204.2,1.93602439]
[1757003899386,132.01602439,204.27,204.21,3.94798458]
[1757003899587,130.08,204.27,204.2,1.93602439]
[1757003899886,7.39,204.24,204.19,0.03559003]
[1757003900389,1.93602439,204.22,204.19,0.03559003]
[1757003900583,7.39,204.22,204.19,0.03559003]
[1757003901090,35.86,204.24,204.2,5.88343987]
[1757003901290,35.86,204.24,204.22,1.93602439]
[1757003901487,35.86,204.24,204.2,1.93602439]
[1757003901787,35.86,204.24,204.2,9.93602439]
[1757003902189,7.39,204.23,204.19,8.03559003]
[1757003902383,7.39,204.23,204.2,3.94619931]
[1757003902589,35.86,204.24,204.19,9.97161442]
[1757003902590,35.86,204.24,204.19,1.97161442]
[1757003902786,35.86,204.24,204.2,11.94728671]
[1757003902987,35.86,204.24,204.2,8.0]
[1757003903587,43.25,204.24,204.2,8.0]
[1757003904290,7.39,204.23,204.19,1.97161442]
[1757003904492,7.39,204.23,204.2,3.94811859]
[1757003904692,7.39,204.23,204.19,1.97161442]
[1757003904990,7.39,204.23,204.2,3.94811799]